[Event "37th Belgrade Trophy 2024"]
[Site "Belgrade"]
[Date "2024.11.23"]
[Round "6"]
[White "Sperat Czar, Nicolas"]
[Black "Nastic, Veselin"]
[Result "0-1"]
[ECO "B07"]
[WhiteElo "2098"]
[BlackElo "1911"]
[Annotator "NA RC"]
[PlyCount "116"]
[EventDate "2024.11.23"]
[EventCountry "SRB"]
[SourceTitle "playchess.com"]
[Source "ChessBase"]
[SourceQuality "1"]
[TimeControl "40/5400+30:900+30"]

1. e4 d6 2. d4 Nf6 3. Nc3 e5 4. dxe5 dxe5 5. Qxd8+ Kxd8 6. Bc4 Be6 7. Bxe6 fxe6 8. f3 c6 9. Nh3 Bc5 10. Nf2 Ke7 11. Nd3 Bd6 12. Nb1 Nbd7 13. Be3 Bc7 14. Nd2 Bb6 15. Bxb6 axb6 16. Nc4 Ra4 17. b3 Ra7 18. Ke2 Rha8 19. a4 b5 20. Ncxe5 bxa4 21. bxa4 Rxa4 22. Rxa4 Rxa4 23. Rb1 Ra7 24. g4 Nxe5 25. Nxe5 Nd7 26. Nd3 b5 27. g5 e5 28. Nb4 Kd6 29. Nd3 Ra2 30. Nb4 Ra4 31. Rd1+ Kc7 32. c3 Nc5 33. Kd2 Ne6 34. h4 Nf4 35. Kc2 g6 36. Kb3 Ra8 37. Rd2 Ra1 38. Rh2 Rb1+ 39. Kc2 Rf1 40. Kb3 Rxf3 41. Ra2 c5 42. Ra7+ Kb6 43. Ra6+ Kb7 44. Ra5 cxb4 45. Kxb4 Nd3+ 46. Kxb5 Rf7 47. Kc4 Rd7 48. Rd5 Nb2+ 49. Kc5 Na4+ 50. Kb4 Rxd5 51. exd5 e4 52. Kc4 Kc7 53. Kd4 Kd6 54. c4 Nc5 55. Kc3 e3 56. Kc2 Ke5 57. Kc3 Ke4 58. Kb4 Kd4 0-1

[Event "37th Belgrade Trophy 2024"]
[Site "Belgrade"]
[Date "2024.11.28"]
[Round "6.4"]
[White "Sutormin, Danila"]
[Black "Popovic, Dragan B"]
[Result "0-1"]
[ECO "B30"]
[WhiteElo "2394"]
[BlackElo "2185"]
[Annotator "TA"]
[PlyCount "68"]
[EventDate "2024.11.23"]
[EventCountry "SRB"]
[SourceTitle "playchess.com"]
[Source "ChessBase"]
[SourceQuality "1"]
[TimeControl "40/5400+30:900+30"]

{[%evp 11,68,21,25,13,12,12,18,16,15,0,5,0,8,0,16,0,45,47,47,43,53,41,54,50,32,-29,-28,-38,-26,-34,-37,-37,-29,-37,-37,-40,-35,-42,-42,-42,-18,-18,0,0,8,9,12,0,0,0,0,-18,-10,-29976,-29977,-29986,-29987,-29987,-29988]} 1. e4 {[%emt 0:08:22]} c5 {[%emt 0:00:08]} 2. Nf3 {[%emt 0:00:16][%cal Bg1f3,Bf3h2,Bh2g4][%mdl 32]} Nc6 {[%emt 0:00:18]} 3. Nc3 {[%emt 0:00:15]} e5 {[%emt 0:00:17]} 4. Bc4 {[%emt 0:00:32]} Be7 {[%emt 0:00:07]} 5. d3 {[%emt 0:00:09]} d6 {[%emt 0:00:15]} 6. h3 {[%emt 0:00:26]} Nf6 {[%emt 0:00:33][%cal Bg8f6,Bf6d7,Bd7b6][%mdl 32]} 7. Nh2 {[%emt 0:00:12]} Be6 {[%emt 0:07:09]} 8. Ng4 {[%emt 0:00:37]} Nd7 {[%emt 0:00:53]} 9. Ne3 {[%emt 0:04:18] The position is equal.} Nb6 {[%emt 0:01:42]} 10. Ncd5 {[%emt 0:20:14]} O-O {[%emt 0:03:35]} 11. a4 {[%emt 0:02:13]} Bg5 {[%emt 0:10:45]} 12. O-O {[%emt 0:24:52]} Kh8 {[%emt 0:10:54]} 13. c3 {[%emt 0:03:34]} (13. Nxb6 {feels hotter.} Qxb6 14. Bxe6 Bxe3 15. a5) 13... Bh6 {[%emt 0:08:26]} 14. Nxb6 {[%emt 0:03:25]} axb6 {[%emt 0:01:35]} 15. Bxe6 {[%emt 0:03:25]} fxe6 {[%emt 0:00:06]} 16. Qb3 {[%emt 0:04:32]} Bxe3 {[%emt 0:07:02]} 17. Bxe3 {[%emt 0:00:05]} d5 {[%emt 0:00:08]} 18. f4 {[%emt 0:02:54]} (18. f3 $14) 18... d4 $11 {[%emt 0:08:23]} 19. cxd4 {[%emt 0:04:16]} Nxd4 {[%emt 0:01:10]} 20. Qd1 {[%emt 0:04:58]} Qd6 {[%emt 0:08:53]} 21. fxe5 {[%emt 0:02:24]} Qxe5 {[%emt 0:02:42] [#] ...Rxf1+ would now be deadly.} 22. Bxd4 {[%emt 0:02:20]} Rxf1+ {[%emt 0:02:15]} (22... cxd4 23. Qb3 $14) 23. Qxf1 {[%emt 0:00:07]} Qxd4+ $15 {[%emt 0:00:10][%mdl 4096] Endgame. KQR-KQR} (23... cxd4 $6 24. Qf7 $16) 24. Kh1 $1 {[%emt 0:00:10]} Kg8 {[%emt 0:00:40]} (24... Rxa4 25. Qf8#) 25. Qd1 {[%emt 0:01:07]} Qxb2 {[%emt 0:06:36]} 26. Rb1 {[%emt 0:00:31]} Qa2 {[%emt 0:00:24]} (26... Qd4 {simplifies} 27. Qb3 Qd6 28. Qxb6 Qxb6 29. Rxb6 Rxa4 30. Rxb7 c4) 27. Rxb6 {[%emt 0:01:02]} Rxa4 {[%emt 0:01:04]} 28. Qh5 {[%emt 0:00:59]} Ra8 {[%emt 0:09:26] Repels Qe8+} 29. Rxb7 {[%emt 0:00:17] White wants to mate with Qf7+.} (29. Qxc5 {simplifies} Qa3 30. Qe5 Qa1+ 31. Qxa1 Rxa1+ 32. Kh2) 29... Qa1+ {[%emt 0:00:22]} 30. Kh2 {[%emt 0:00:05]} Qf6 {[%emt 0:00:10] Prevents Qf7+. ( -> ...Qf4+)} 31. h4 {[%emt 0:04:42][%cal Oh5g4]} c4 {[%emt 0:01:28]} 32. d4 {[%emt 0:02:01][%mdl 8192] [#]} (32. dxc4 $2 Qf4+ 33. Kh3 Ra3+ $19 (33... Qxe4 34. Qf7+ Kh8 35. Qxg7#) (33... Qxe4 34. Qf7+ Kh8 35. Qxg7#)) (32. Kg3 $11) 32... Qf4+ {[%emt 0:02:35] Black mates.} (32... Qxd4 33. Qf7+ Kh8 34. Qxe6 $11) 33. g3 {[%emt 0:00:06]} Qf2+ {[%emt 0:00:58]} ({Inferior is} 33... Qxe4 34. Qf7+ Kh8 35. Qxg7#) 34. Kh3 {[%emt 0:00:04]} Qf1+ {[%emt 0:00:15] Weighted Error Value: White=0.25 (precise) /Black=0.05 (flawless) .  Loses game:     	White=1     	---        Mistake:       	White=1     	---        Inaccurate:     	---       	Black=1      OK:         	White=10    	Black=12     Best:        	White=2     	Black=2      Strong:       	White=1     	---} (34... Qxd4 35. Qf7+ Kh8 36. Rc7 $16) 0-1

[Event "37th Belgrade Trophy 2024"]
[Site "Belgrade"]
[Date "2024.11.28"]
[Round "6.5"]
[White "Slobodiansky, Steven"]
[Black "Baghdasaryan, Davit"]
[Result "1/2-1/2"]
[ECO "B51"]
[WhiteElo "2273"]
[BlackElo "2121"]
[Annotator "RC"]
[PlyCount "96"]
[EventDate "2024.11.23"]
[EventCountry "SRB"]
[SourceTitle "playchess.com"]
[Source "ChessBase"]
[SourceQuality "1"]
[TimeControl "40/5400+30:900+30"]

1. e4 {[%emt 0:00:08]} c5 {[%emt 0:00:25]} 2. Nf3 {[%emt 0:00:07]} d6 {[%emt 0:00:06]} 3. Bb5+ {[%emt 0:00:35]} Nd7 {[%emt 0:00:34]} 4. a4 {[%emt 0:00:20]} Ngf6 {[%emt 0:00:29]} 5. Nc3 {[%emt 0:00:08]} g6 {[%emt 0:00:20]} 6. a5 {[%emt 0:01:01]} Bg7 {[%emt 0:00:22]} 7. O-O {[%emt 0:00:20]} a6 {[%emt 0:01:59]} 8. Bc4 {[%emt 0:00:35]} O-O {[%emt 0:01:01]} 9. d3 {[%emt 0:00:32]} b5 {[%emt 0:05:35]} 10. axb6 {[%emt 0:02:46]} Nxb6 {[%emt 0:07:49]} 11. Bb3 {[%emt 0:05:26]} Qc7 {[%emt 0:05:27]} 12. Qe2 {[%emt 0:08:34]} Bb7 {[%emt 0:05:37]} 13. Bf4 {[%emt 0:12:43]} Nh5 {[%emt 0:08:45]} 14. Be3 {[%emt 0:01:04]} e6 {[%emt 0:00:27]} 15. Qd2 {[%emt 0:11:38]} d5 {[%emt 0:11:04]} 16. exd5 {[%emt 0:01:18]} exd5 {[%emt 0:03:05]} 17. d4 {[%emt 0:00:55]} c4 {[%emt 0:01:03]} 18. Ba2 {[%emt 0:00:06]} Rac8 {[%emt 0:04:22]} 19. Bb1 {[%emt 0:12:01]} Nf6 {[%emt 0:04:00]} 20. Bf4 {[%emt 0:00:55]} Qd8 {[%emt 0:06:18]} 21. Bg5 {[%emt 0:01:32]} Qd6 {[%emt 0:04:14]} 22. Bf4 {[%emt 0:06:31]} Qd8 {[%emt 0:01:21]} 23. Na4 {[%emt 0:03:05]} Nxa4 {[%emt 0:02:34]} 24. Rxa4 {[%emt 0:00:05]} c3 {[%emt 0:02:30]} 25. Qc1 {[%emt 0:01:50]} Ne4 {[%emt 0:01:18]} 26. Ra3 {[%emt 0:00:52]} Bc6 {[%emt 0:01:53]} 27. bxc3 {[%emt 0:13:22]} Bb5 {[%emt 0:00:25]} 28. c4 {[%emt 0:00:32]} Bxc4 {[%emt 0:01:21]} 29. Re1 {[%emt 0:00:12]} Re8 {[%emt 0:00:05]} 30. Rae3 {[%emt 0:04:45]} Qa5 {[%emt 0:05:57]} 31. c3 {[%emt 0:01:07]} Bb5 {[%emt 0:00:08]} 32. Bxe4 {[%emt 0:03:14]} dxe4 {[%emt 0:00:20]} 33. Rxe4 {[%emt 0:00:46]} Rxe4 {[%emt 0:00:08]} 34. Rxe4 {[%emt 0:00:03]} Qxc3 {[%emt 0:00:26]} 35. Qxc3 {[%emt 0:01:32]} Rxc3 {[%emt 0:00:01]} 36. h4 {[%emt 0:00:38]} Rd3 {[%emt 0:03:02]} 37. Re7 {[%emt 0:04:19]} Bxd4 {[%emt 0:07:29]} 38. Nxd4 {[%emt 0:00:20]} Rxd4 {[%emt 0:00:22]} 39. Be5 {[%emt 0:00:16]} Re4 {[%emt 0:01:22]} 40. f4 {[%emt 0:00:30]} Kf8 {[%emt 0:01:56]} 41. Ra7 {[%emt 0:15:51]} Re2 {[%emt 0:15:22]} 42. Kh2 {[%emt 0:02:55]} Bc4 {[%emt 0:04:12]} 43. Kg3 {[%emt 0:00:00]} Bd5 {[%emt 0:00:00]} 44. Rxa6 {[%emt 0:00:00]} Rxg2+ {[%emt 0:00:00]} 45. Kh3 {[%emt 0:00:00]} Rd2 {[%emt 0:00:00]} 46. Bf6 {[%emt 0:00:00]} Be6+ {[%emt 0:00:00]} 47. Kg3 {[%emt 0:00:00]} Ra2 {[%emt 0:00:00]} 48. Rxa2 {[%emt 0:00:00]} Bxa2 {[%emt 0:04:16]} 1/2-1/2

[Event "37th Belgrade Trophy 2024"]
[Site "Belgrade"]
[Date "2024.11.28"]
[Round "6.6"]
[White "Petrovic, Aleksa"]
[Black "Vasilyev, Bulat"]
[Result "1-0"]
[ECO "A07"]
[WhiteElo "2262"]
[BlackElo "1824"]
[Annotator "RC"]
[PlyCount "117"]
[EventDate "2024.11.23"]
[EventCountry "SRB"]
[SourceTitle "playchess.com"]
[Source "ChessBase"]
[SourceQuality "1"]
[TimeControl "40/5400+30:900+30"]

1. Nf3 {[%emt 0:00:03]} d5 {[%emt 0:06:24]} 2. g3 {[%emt 0:00:32]} Nd7 {[%emt 0:00:39]} 3. Bg2 {[%emt 0:03:58]} e5 {[%emt 0:00:35]} 4. O-O {[%emt 0:00:07]} Ngf6 {[%emt 0:01:03]} 5. d3 {[%emt 0:00:58]} Bd6 {[%emt 0:03:16]} 6. Nc3 {[%emt 0:00:32]} c6 {[%emt 0:00:47]} 7. e4 {[%emt 0:00:12]} dxe4 {[%emt 0:02:08]} 8. Nxe4 {[%emt 0:01:53]} Nxe4 {[%emt 0:03:49]} 9. dxe4 {[%emt 0:00:05]} Be7 {[%emt 0:03:41]} 10. a4 {[%emt 0:02:32]} a5 {[%emt 0:01:39]} 11. Nd2 {[%emt 0:06:10]} O-O {[%emt 0:01:21]} 12. Nc4 {[%emt 0:00:35]} Qc7 {[%emt 0:08:01]} 13. Qf3 {[%emt 0:01:24]} Rd8 {[%emt 0:07:10]} 14. Ne3 {[%emt 0:02:24]} Nc5 {[%emt 0:05:46]} 15. Nf5 {[%emt 0:06:50]} Bxf5 {[%emt 0:05:18]} 16. Qxf5 {[%emt 0:00:46]} Ne6 {[%emt 0:06:58]} 17. c3 {[%emt 0:00:45]} Bd6 {[%emt 0:08:43]} 18. h4 {[%emt 0:03:43]} b5 {[%emt 0:03:24]} 19. h5 {[%emt 0:00:59]} h6 {[%emt 0:03:59]} 20. Qg4 {[%emt 0:01:33]} Kh8 {[%emt 0:00:20]} 21. Qe2 {[%emt 0:08:48]} Rdb8 {[%emt 0:06:19]} 22. Be3 {[%emt 0:05:11]} Nc5 {[%emt 0:02:38]} 23. axb5 {[%emt 0:00:17]} cxb5 {[%emt 0:00:13]} 24. Rad1 {[%emt 0:00:15]} a4 {[%emt 0:02:41]} 25. Rd5 {[%emt 0:00:26]} Ra6 {[%emt 0:08:39]} 26. Rfd1 {[%emt 0:03:06]} Kg8 {[%emt 0:00:41]} 27. Qf3 {[%emt 0:01:45]} Nd7 {[%emt 0:00:36]} 28. Bf1 {[%emt 0:00:54]} Nf6 {[%emt 0:03:01]} 29. Rxb5 {[%emt 0:00:28]} Rxb5 {[%emt 0:01:43]} 30. Bxb5 {[%emt 0:00:05]} Ra5 {[%emt 0:00:09]} 31. c4 {[%emt 0:02:02]} a3 {[%emt 0:02:08]} 32. bxa3 {[%emt 0:00:07]} Rxa3 {[%emt 0:00:13]} 33. Qf5 {[%emt 0:00:53]} Rxe3 {[%emt 0:01:54]} 34. fxe3 {[%emt 0:00:06]} Bc5 {[%emt 0:00:43]} 35. Kf2 {[%emt 0:01:04]} Qb6 {[%emt 0:00:20]} 36. Rd3 {[%emt 0:00:04]} Bd6 {[%emt 0:00:38]} 37. Kf3 {[%emt 0:00:54]} Qc7 {[%emt 0:00:26]} 38. Rd2 {[%emt 0:01:39]} Nh7 {[%emt 0:00:39]} 39. Kg2 {[%emt 0:04:21]} Ng5 {[%emt 0:00:24]} 40. Qd7 {[%emt 0:00:08]} Qxd7 {[%emt 0:00:49]} 41. Bxd7 {[%emt 0:15:05]} Nxe4 {[%emt 0:15:26]} 42. Rd5 {[%emt 0:05:46]} Bf8 {[%emt 0:00:00]} 43. Bf5 {[%emt 0:00:00]} Nc5 {[%emt 0:00:00]} 44. Rxe5 {[%emt 0:00:00]} g6 {[%emt 0:00:00]} 45. hxg6 {[%emt 0:00:00]} fxg6 {[%emt 0:00:00]} 46. Bxg6 {[%emt 0:00:00]} Kg7 {[%emt 0:00:00]} 47. Bc2 {[%emt 0:00:00]} Bd6 {[%emt 0:00:04]} 48. Rd5 {[%emt 0:00:00]} Be7 {[%emt 0:00:11]} 49. Kf3 {[%emt 0:00:00]} Kf7 {[%emt 0:00:21]} 50. e4 {[%emt 0:00:00]} Ke6 {[%emt 0:00:36]} 51. Ke3 {[%emt 0:00:00]} Nd7 {[%emt 0:00:18]} 52. Bd1 {[%emt 0:00:00]} Ne5 {[%emt 0:01:17]} 53. Be2 {[%emt 0:00:00]} Bg5+ {[%emt 0:00:25]} 54. Kd4 {[%emt 0:00:00]} Bf6 {[%emt 0:00:20]} 55. Kc5 {[%emt 0:00:00]} Be7+ {[%emt 0:01:44]} 56. Kb5 {[%emt 0:00:00]} Nf7 {[%emt 0:00:58]} 57. c5 {[%emt 0:00:00]} Ng5 {[%emt 0:00:33]} 58. Bg4+ {[%emt 0:00:00]} Kf7 {[%emt 0:00:18]} 59. c6 {[%emt 0:00:00]} 1-0

[Event "37th Belgrade Trophy 2024"]
[Site "Belgrade"]
[Date "2024.11.28"]
[Round "6.7"]
[White "Gevorgyan, David Sh."]
[Black "Ughuzov, Ravan"]
[Result "0-1"]
[ECO "E26"]
[WhiteElo "2247"]
[BlackElo "2047"]
[Annotator "RC"]
[PlyCount "76"]
[EventDate "2024.11.23"]
[EventCountry "SRB"]
[SourceTitle "playchess.com"]
[Source "ChessBase"]
[SourceQuality "1"]
[TimeControl "40/5400+30:900+30"]

1. d4 {[%emt 0:02:05]} Nf6 {[%emt 0:00:09]} 2. c4 {[%emt 0:00:36]} e6 {[%emt 0:00:06]} 3. Nc3 {[%emt 0:00:11]} Bb4 {[%emt 0:00:07]} 4. a3 {[%emt 0:03:40]} Bxc3+ {[%emt 0:00:05]} 5. bxc3 {[%emt 0:00:04]} c5 {[%emt 0:00:05]} 6. e3 {[%emt 0:03:27]} Nc6 {[%emt 0:00:07]} 7. f3 {[%emt 0:08:34]} d6 {[%emt 0:00:36]} 8. Bd3 {[%emt 0:02:37]} b6 {[%emt 0:00:10]} 9. Ne2 {[%emt 0:08:14]} Na5 {[%emt 0:00:07]} 10. e4 {[%emt 0:02:25]} Ba6 {[%emt 0:02:40]} 11. Bg5 {[%emt 0:15:10]} Qc7 {[%emt 0:03:55]} 12. Bxf6 {[%emt 0:17:15]} gxf6 {[%emt 0:01:34]} 13. d5 {[%emt 0:00:15]} O-O-O {[%emt 0:02:00]} 14. Nf4 {[%emt 0:04:52]} Qe7 {[%emt 0:00:12]} 15. Qe2 {[%emt 0:01:06]} h5 {[%emt 0:00:40]} 16. dxe6 {[%emt 0:05:59]} fxe6 {[%emt 0:00:40]} 17. Ng6 {[%emt 0:00:49]} Qd7 {[%emt 0:01:54]} 18. Nxh8 {[%emt 0:01:13]} Rxh8 {[%emt 0:00:02]} 19. a4 {[%emt 0:04:35]} Qg7 {[%emt 0:02:54]} 20. O-O {[%emt 0:00:42]} Rg8 {[%emt 0:01:00]} 21. Ra2 {[%emt 0:04:15]} Qh6 {[%emt 0:02:02]} 22. Kh1 {[%emt 0:06:14]} Kc7 {[%emt 0:00:49]} 23. f4 {[%emt 0:05:12]} Bb7 {[%emt 0:00:26]} 24. Rd2 {[%emt 0:01:41]} Rg4 {[%emt 0:04:00]} 25. Qe3 {[%emt 0:00:49]} Nb3 {[%emt 0:01:35]} 26. Rb2 {[%emt 0:00:49]} Na5 {[%emt 0:00:04]} 27. Rd2 {[%emt 0:00:27]} Qg7 {[%emt 0:01:28]} 28. Rdf2 {[%emt 0:00:36]} f5 {[%emt 0:01:20]} 29. Qe2 {[%emt 0:00:29]} Qf6 {[%emt 0:05:44]} 30. exf5 {[%emt 0:00:36]} exf5 {[%emt 0:00:05]} 31. Re1 {[%emt 0:00:23]} Rg7 {[%emt 0:00:01]} 32. Qc2 {[%emt 0:00:33]} Qh4 {[%emt 0:01:54]} 33. Rg1 {[%emt 0:00:31]} Rg3 {[%emt 0:00:38]} 34. Bxf5 {[%emt 0:00:33]} Nxc4 {[%emt 0:00:01]} 35. Be4 {[%emt 0:00:30]} Ne3 {[%emt 0:00:04]} 36. Qd3 {[%emt 0:00:29]} Ng4 {[%emt 0:00:19]} 37. Qxg3 {[%emt 0:00:33]} Qxh2+ {[%emt 0:00:06]} 38. Qxh2 {[%emt 0:00:12]} Nxf2# {[%emt 0:00:01]} 0-1

[Event "37th Belgrade Trophy 2024"]
[Site "Belgrade"]
[Date "2024.11.28"]
[Round "6.8"]
[White "Chelushkina, Irina"]
[Black "Divljan, Igor"]
[Result "0-1"]
[ECO "B22"]
[WhiteElo "2141"]
[BlackElo "2221"]
[Annotator "RC"]
[PlyCount "126"]
[EventDate "2024.11.23"]
[EventCountry "SRB"]
[SourceTitle "playchess.com"]
[Source "ChessBase"]
[SourceQuality "1"]
[TimeControl "40/5400+30:900+30"]

1. e4 {[%emt 0:00:04]} c5 {[%emt 0:00:12]} 2. Nf3 {[%emt 0:00:04]} e6 {[%emt 0:00:16]} 3. c3 {[%emt 0:00:17]} Nf6 {[%emt 0:00:25]} 4. e5 {[%emt 0:00:22]} Nd5 {[%emt 0:00:32]} 5. d4 {[%emt 0:00:24]} cxd4 {[%emt 0:01:25]} 6. Bc4 {[%emt 0:00:21]} Nb6 {[%emt 0:09:28]} 7. Bb3 {[%emt 0:00:06]} d6 {[%emt 0:06:33]} 8. O-O {[%emt 0:09:55]} Nc6 {[%emt 0:04:44]} 9. Bg5 {[%emt 0:02:14]} Be7 {[%emt 0:06:06]} 10. Bxe7 {[%emt 0:05:53]} Nxe7 {[%emt 0:12:53]} 11. Qxd4 {[%emt 0:02:15]} Nf5 {[%emt 0:06:42]} 12. Qd3 {[%emt 0:00:16]} dxe5 {[%emt 0:02:25]} 13. Qb5+ {[%emt 0:05:05]} Bd7 {[%emt 0:02:53]} 14. Qxe5 {[%emt 0:00:05]} Qf6 {[%emt 0:10:45]} 15. Nbd2 {[%emt 0:02:34]} Bc6 {[%emt 0:01:59]} 16. Bc2 {[%emt 0:00:46]} Qxe5 {[%emt 0:02:30]} 17. Nxe5 {[%emt 0:06:28]} Ne7 {[%emt 0:00:08]} 18. Ne4 {[%emt 0:02:26]} Bxe4 {[%emt 0:05:32]} 19. Bxe4 {[%emt 0:00:02]} Rb8 {[%emt 0:07:59]} 20. a4 {[%emt 0:01:23]} f6 {[%emt 0:01:20]} 21. a5 {[%emt 0:00:15]} Nd7 {[%emt 0:05:55]} 22. Nc4 {[%emt 0:01:14]} O-O {[%emt 0:03:34]} 23. Rfe1 {[%emt 0:08:05]} Rfd8 {[%emt 0:01:16]} 24. g3 {[%emt 0:05:26]} Nc5 {[%emt 0:00:25]} 25. Bc2 {[%emt 0:02:00]} e5 {[%emt 0:02:07]} 26. b4 {[%emt 0:01:06]} Na6 {[%emt 0:00:49]} 27. f4 {[%emt 0:02:00]} Nd5 {[%emt 0:00:42]} 28. fxe5 {[%emt 0:03:35]} Nxc3 {[%emt 0:00:06]} 29. Bb3 {[%emt 0:01:46]} Kf8 {[%emt 0:00:19]} 30. exf6 {[%emt 0:01:24]} gxf6 {[%emt 0:00:31]} 31. Re6 {[%emt 0:00:35]} Nxb4 {[%emt 0:01:00]} 32. Rxf6+ {[%emt 0:01:42]} Kg7 {[%emt 0:00:09]} 33. Raf1 {[%emt 0:02:19]} Rf8 {[%emt 0:00:21]} 34. Rxf8 {[%emt 0:01:31]} Rxf8 {[%emt 0:00:06]} 35. Re1 {[%emt 0:01:41]} Nc6 {[%emt 0:01:19]} 36. Nd6 {[%emt 0:00:57]} Nd4 {[%emt 0:04:09]} 37. Re7+ {[%emt 0:01:23]} Kf6 {[%emt 0:00:32]} 38. Rxb7 {[%emt 0:00:04]} Ke5 {[%emt 0:00:24]} 39. Nf7+ {[%emt 0:01:01]} Ke4 {[%emt 0:00:23]} 40. Bc4 {[%emt 0:00:53]} Nd1 {[%emt 0:01:05]} 41. Re7+ {[%emt 0:17:33]} Kf5 {[%emt 0:02:23]} 42. Kg2 {[%emt 0:00:00]} Nc6 {[%emt 0:03:34]} 43. Re1 {[%emt 0:00:00]} Nb2 {[%emt 0:01:15]} 44. Bd5 {[%emt 0:00:00]} Nxa5 {[%emt 0:00:56]} 45. Nd6+ {[%emt 0:00:00]} Kg6 {[%emt 0:08:03]} 46. Re6+ {[%emt 0:00:00]} Kg7 {[%emt 0:00:29]} 47. Re7+ {[%emt 0:00:00]} Kf6 {[%emt 0:00:05]} 48. Rxa7 {[%emt 0:00:25]} Ke5 {[%emt 0:00:14]} 49. Rxa5 {[%emt 0:00:18]} Kxd6 {[%emt 0:00:06]} 50. Be4 {[%emt 0:01:16]} Rh8 {[%emt 0:00:21]} 51. Rd5+ {[%emt 0:04:35]} Ke6 {[%emt 0:01:06]} 52. Rd2 {[%emt 0:01:51]} Na4 {[%emt 0:00:18]} 53. g4 {[%emt 0:00:18]} Ke5 {[%emt 0:01:02]} 54. Bc6 {[%emt 0:00:52]} Nb6 {[%emt 0:01:05]} 55. Kg3 {[%emt 0:00:29]} h6 {[%emt 0:01:06]} 56. Kh4 {[%emt 0:02:49]} Nc4 {[%emt 0:00:14]} 57. Rd5+ {[%emt 0:02:15]} Kf6 {[%emt 0:00:11]} 58. Rf5+ {[%emt 0:00:35]} Kg6 {[%emt 0:01:20]} 59. Bd5 {[%emt 0:02:32]} Nd6 {[%emt 0:00:13]} 60. Re5 {[%emt 0:00:10]} Rf8 {[%emt 0:00:36]} 61. h3 {[%emt 0:01:59]} Rf6 {[%emt 0:00:20]} 62. Re7 {[%emt 0:00:39]} Rf4 {[%emt 0:00:56]} 63. Bb3 {[%emt 0:00:41]} Nf5# {[%emt 0:00:09]} 0-1

[Event "37th Belgrade Trophy 2024"]
[Site "Belgrade"]
[Date "2024.11.28"]
[Round "6.9"]
[White "Triantafilidis, Mihail"]
[Black "Bjelanovic, Mile"]
[Result "1-0"]
[ECO "A55"]
[WhiteElo "2200"]
[BlackElo "2041"]
[Annotator "RC"]
[PlyCount "79"]
[EventDate "2024.11.23"]
[EventCountry "SRB"]
[SourceTitle "playchess.com"]
[Source "ChessBase"]
[SourceQuality "1"]
[TimeControl "40/5400+30:900+30"]

1. d4 {[%emt 0:00:20]} Nf6 {[%emt 0:00:09]} 2. c4 {[%emt 0:00:09]} d6 {[%emt 0:00:09]} 3. Nc3 {[%emt 0:00:10]} Nbd7 {[%emt 0:00:11]} 4. e4 {[%emt 0:00:11]} e5 {[%emt 0:00:10]} 5. Nf3 {[%emt 0:00:17]} Be7 {[%emt 0:00:39]} 6. Be2 {[%emt 0:00:10]} O-O {[%emt 0:00:36]} 7. O-O {[%emt 0:00:08]} Re8 {[%emt 0:01:18]} 8. Be3 {[%emt 0:00:16]} Bf8 {[%emt 0:03:17]} 9. d5 {[%emt 0:00:44]} Nc5 {[%emt 0:03:47]} 10. Nd2 {[%emt 0:01:58]} a5 {[%emt 0:01:42]} 11. b3 {[%emt 0:00:11]} g6 {[%emt 0:06:47]} 12. a3 {[%emt 0:00:13]} h6 {[%emt 0:02:39]} 13. h3 {[%emt 0:02:30]} Nh7 {[%emt 0:02:40]} 14. b4 {[%emt 0:01:04]} axb4 {[%emt 0:06:03]} 15. axb4 {[%emt 0:00:08]} Rxa1 {[%emt 0:00:05]} 16. Qxa1 {[%emt 0:00:08]} Nd7 {[%emt 0:02:45]} 17. Bd3 {[%emt 0:06:37]} Ndf6 {[%emt 0:03:26]} 18. Qa5 {[%emt 0:20:40]} Ng5 {[%emt 0:02:56]} 19. Nb5 {[%emt 0:01:44]} b6 {[%emt 0:15:05]} 20. Qa7 {[%emt 0:00:09]} Re7 {[%emt 0:00:30]} 21. Qb8 {[%emt 0:00:43]} Qd7 {[%emt 0:00:52]} 22. Ra1 {[%emt 0:07:18]} Nxh3+ {[%emt 0:01:02]} 23. gxh3 {[%emt 0:00:59]} Qxh3 {[%emt 0:00:12]} 24. Bf1 {[%emt 0:00:10]} Qg4+ {[%emt 0:01:37]} 25. Bg2 {[%emt 0:00:10]} Bd7 {[%emt 0:09:06]} 26. Nxc7 {[%emt 0:00:50]} Ne8 {[%emt 0:00:27]} 27. Nxe8 {[%emt 0:03:47]} Rxe8 {[%emt 0:00:58]} 28. Qxb6 {[%emt 0:00:09]} f5 {[%emt 0:00:26]} 29. f3 {[%emt 0:01:02]} Qh5 {[%emt 0:01:56]} 30. exf5 {[%emt 0:01:49]} gxf5 {[%emt 0:00:13]} 31. Ra7 {[%emt 0:00:53]} f4 {[%emt 0:02:59]} 32. Rxd7 {[%emt 0:01:38]} fxe3 {[%emt 0:00:31]} 33. Ne4 {[%emt 0:00:40]} Qf5 {[%emt 0:02:51]} 34. Qxe3 {[%emt 0:00:35]} Ra8 {[%emt 0:01:16]} 35. Ra7 {[%emt 0:00:15]} Rxa7 {[%emt 0:04:22]} 36. Qxa7 {[%emt 0:00:11]} Qf4 {[%emt 0:00:11]} 37. Qd7 {[%emt 0:00:47]} Qe3+ {[%emt 0:00:57]} 38. Kh2 {[%emt 0:00:06]} Qf4+ {[%emt 0:00:25]} 39. Kh3 {[%emt 0:00:08]} h5 {[%emt 0:03:26]} 40. b5 {[%emt 0:00:56]} 1-0